[Event "*** Titled Tuesday Blitz"]
[Site "Chess.com"]
[Date "2020.05.12"]
[Round "4"]
[White "FranciscodelaF"]
[Black "Snegokhod"]
[Result "0-1"]
[WhiteElo "2352"]
[BlackElo "2541"]
[TimeControl "180+1"]
[EndTime "10:38:53 PDT"]
[Termination "Snegokhod won by resignation"]

1. d4 {[%clk 0:03:00.9]} 1... Nf6 {[%clk 0:02:59.7]} 2. c4 {[%clk 0:03:00.2]}
2... g6 {[%clk 0:02:59.8]} 3. g3 {[%clk 0:02:58.4]} 3... Bg7 {[%clk 0:02:59.6]}
4. Bg2 {[%clk 0:02:58.6]} 4... d5 {[%clk 0:02:59.9]} 5. cxd5 {[%clk 0:02:57.7]}
5... Nxd5 {[%clk 0:02:59.7]} 6. Nf3 {[%clk 0:02:57.6]} 6... O-O {[%clk
0:02:59.1]} 7. O-O {[%clk 0:02:53.3]} 7... Nc6 {[%clk 0:02:58.9]} 8. e4 {[%clk
0:02:51.2]} 8... Nb6 {[%clk 0:02:58.8]} 9. d5 {[%clk 0:02:41.3]} 9... Na5 {[%clk
0:02:58.7]} 10. Nc3 {[%clk 0:02:33.5]} 10... c6 {[%clk 0:02:58.6]} 11. Be3
{[%clk 0:02:29.3]} 11... cxd5 {[%clk 0:02:57.3]} 12. exd5 {[%clk 0:02:24.6]}
12... Nac4 {[%clk 0:02:55.5]} 13. Qe2 {[%clk 0:02:12.6]} 13... Nxe3 {[%clk
0:02:53.6]} 14. Qxe3 {[%clk 0:02:12.8]} 14... Nxd5 {[%clk 0:02:52.8]} 15. Nxd5
{[%clk 0:02:12.4]} 15... Qxd5 {[%clk 0:02:53.5]} 16. Qxe7 {[%clk 0:02:11.5]}
16... Qe6 {[%clk 0:02:53.3]} 17. Qb4 {[%clk 0:02:05.8]} 17... Qb6 {[%clk
0:02:53.1]} 18. Qh4 {[%clk 0:01:59.5]} 18... Qxb2 {[%clk 0:02:50.8]} 19. Rab1
{[%clk 0:01:57.9]} 19... Qxa2 {[%clk 0:02:49.5]} 20. Ng5 {[%clk 0:01:57.4]}
20... h6 {[%clk 0:02:49.1]} 21. Ne4 {[%clk 0:01:56.3]} 21... a5 {[%clk
0:02:31.4]} 22. Rb6 {[%clk 0:01:42.9]} 22... Be6 {[%clk 0:02:24.1]} 23. Rxb7
{[%clk 0:01:38.4]} 23... a4 {[%clk 0:02:21.5]} 24. Nf6+ {[%clk 0:01:38]} 24...
Kh8 {[%clk 0:02:17.2]} 25. Ng4 {[%clk 0:01:27.6]} 25... Bxg4 {[%clk 0:02:11.3]}
26. Qxg4 {[%clk 0:01:25.4]} 26... a3 {[%clk 0:02:09.9]} 27. Rd7 {[%clk
0:00:55.7]} 27... Ra5 {[%clk 0:02:00.3]} 28. Qb4 {[%clk 0:00:52.7]} 28... Ra6
{[%clk 0:01:42.7]} 29. Rd3 {[%clk 0:00:31.1]} 29... Qb2 {[%clk 0:01:39.2]} 30.
Rb3 {[%clk 0:00:30.8]} 30... Qa2 {[%clk 0:01:25.4]} 31. Bb7 {[%clk 0:00:19.7]}
31... Ra7 {[%clk 0:01:22.9]} 32. Qb6 {[%clk 0:00:19.8]} 32... Qc2 {[%clk
0:01:11.8]} 33. Qxa7 {[%clk 0:00:10.8]} 33... Qxb3 {[%clk 0:01:11.8]} 34. Qc5
{[%clk 0:00:06.2]} 34... a2 {[%clk 0:01:05.2]} 35. Bd5 {[%clk 0:00:06.1]} 35...
Qb2 {[%clk 0:01:05.4]} 36. Bxa2 {[%clk 0:00:05]} 36... Qxa2 {[%clk 0:01:05.5]}
37. Rd1 {[%clk 0:00:05.4]} 37... Qe6 {[%clk 0:01:01.4]} 38. Rd6 {[%clk
0:00:05.4]} 38... Qe1+ {[%clk 0:00:58.7]} 39. Kg2 {[%clk 0:00:05.9]} 39... Qe4+
{[%clk 0:00:58.5]} 40. Kg1 {[%clk 0:00:05.3]} 40... h5 {[%clk 0:00:57.1]} 41. h4
{[%clk 0:00:03.9]} 41... Qf3 {[%clk 0:00:56]} 42. Rd1 {[%clk 0:00:04]} 42...
Qxd1+ {[%clk 0:00:55.2]} 0-1

[Event "*** Titled Tuesday Blitz"]
[Site "Chess.com"]
[Date "2020.05.12"]
[Round "4"]
[White "ama18"]
[Black "Kobalia"]
[Result "0-1"]
[WhiteElo "2514"]
[BlackElo "2789"]
[TimeControl "180+1"]
[EndTime "10:38:54 PDT"]
[Termination "Kobalia won by resignation"]

1. e4 {[%clk 0:03:00.9]} 1... c6 {[%clk 0:02:59.4]} 2. Nc3 {[%clk 0:02:59.8]}
2... d5 {[%clk 0:03:00.3]} 3. Nf3 {[%clk 0:03:00.4]} 3... Bg4 {[%clk 0:02:57]}
4. h3 {[%clk 0:02:59.9]} 4... Bxf3 {[%clk 0:02:57.2]} 5. Qxf3 {[%clk 0:03:00.8]}
5... e6 {[%clk 0:02:57.8]} 6. g3 {[%clk 0:02:59.9]} 6... Nf6 {[%clk 0:02:56.6]}
7. Bg2 {[%clk 0:03:00.1]} 7... Bb4 {[%clk 0:02:56]} 8. exd5 {[%clk 0:02:38.7]}
8... cxd5 {[%clk 0:02:53.8]} 9. O-O {[%clk 0:02:37.3]} 9... O-O {[%clk
0:02:53.7]} 10. d4 {[%clk 0:02:37.1]} 10... Nc6 {[%clk 0:02:30.5]} 11. Ne2
{[%clk 0:02:34.5]} 11... Ne4 {[%clk 0:02:22.6]} 12. c3 {[%clk 0:02:33.8]} 12...
Bd6 {[%clk 0:02:18.2]} 13. Nf4 {[%clk 0:02:30]} 13... b5 {[%clk 0:02:15]} 14. a3
{[%clk 0:02:24.3]} 14... a5 {[%clk 0:02:14.4]} 15. Nd3 {[%clk 0:02:20.1]} 15...
b4 {[%clk 0:02:14]} 16. Qe3 {[%clk 0:01:52.3]} 16... bxc3 {[%clk 0:02:11.4]} 17.
Bxe4 {[%clk 0:01:50.2]} 17... dxe4 {[%clk 0:02:08.2]} 18. Qxe4 {[%clk
0:01:47.7]} 18... cxb2 {[%clk 0:02:07.1]} 19. Bxb2 {[%clk 0:01:33.1]} 19... Ne7
{[%clk 0:02:06.9]} 20. Rac1 {[%clk 0:01:29.1]} 20... Rb8 {[%clk 0:02:05.1]} 21.
Rfd1 {[%clk 0:01:18.5]} 21... Nd5 {[%clk 0:02:04.1]} 22. Rc2 {[%clk 0:01:10.1]}
22... a4 {[%clk 0:01:59.2]} 23. Ne5 {[%clk 0:01:03]} 23... Rxb2 {[%clk
0:01:49.9]} 24. Rxb2 {[%clk 0:00:21.4]} 24... Nc3 {[%clk 0:01:48.7]} 25. Qf3
{[%clk 0:00:18.7]} 25... Nxd1 {[%clk 0:01:47.5]} 26. Nc6 {[%clk 0:00:13.6]}
26... Qd7 {[%clk 0:01:34.8]} 27. Rc2 {[%clk 0:00:07.5]} 27... Rc8 {[%clk
0:00:49.5]} 28. Nb4 {[%clk 0:00:06.6]} 28... Rxc2 {[%clk 0:00:45.7]} 29. Nxc2
{[%clk 0:00:07.5]} 29... Nb2 {[%clk 0:00:44.9]} 30. Qc3 {[%clk 0:00:07.1]} 30...
Qb7 {[%clk 0:00:38.8]} 31. Nb4 {[%clk 0:00:06.4]} 31... Nd1 {[%clk 0:00:24.5]}
32. Qc2 {[%clk 0:00:04.6]} 32... Bxb4 {[%clk 0:00:20.4]} 33. axb4 {[%clk
0:00:03.5]} 33... a3 {[%clk 0:00:17.4]} 34. Qxd1 {[%clk 0:00:03.1]} 34... Qxb4
{[%clk 0:00:16.9]} 35. Qc2 {[%clk 0:00:02.4]} 35... g6 {[%clk 0:00:13.9]} 36. h4
{[%clk 0:00:02]} 36... Qxd4 {[%clk 0:00:13]} 0-1

[Event "*** Titled Tuesday Blitz"]
[Site "Chess.com"]
[Date "2020.05.12"]
[Round "4"]
[White "ASVZ"]
[Black "viktorskliarov"]
[Result "0-1"]
[WhiteElo "2360"]
[BlackElo "2593"]
[TimeControl "180+1"]
[EndTime "10:38:54 PDT"]
[Termination "viktorskliarov won by checkmate"]

1. e4 {[%clk 0:03:00.9]} 1... c5 {[%clk 0:02:59]} 2. c3 {[%clk 0:03:00.8]} 2...
d6 {[%clk 0:02:58.9]} 3. d4 {[%clk 0:03:00.8]} 3... Nf6 {[%clk 0:02:59.5]} 4.
dxc5 {[%clk 0:03:01]} 4... Nc6 {[%clk 0:02:59.3]} 5. Bb5 {[%clk 0:02:58]} 5...
Nxe4 {[%clk 0:02:54]} 6. Bxc6+ {[%clk 0:02:57.7]} 6... bxc6 {[%clk 0:02:53.5]}
7. Be3 {[%clk 0:02:57]} 7... Nxc5 {[%clk 0:02:42.8]} 8. Bxc5 {[%clk 0:02:56.7]}
8... dxc5 {[%clk 0:02:43.7]} 9. Qxd8+ {[%clk 0:02:57.4]} 9... Kxd8 {[%clk
0:02:44.6]} 10. Nd2 {[%clk 0:02:57.6]} 10... Bf5 {[%clk 0:02:38.5]} 11. O-O-O
{[%clk 0:02:57.1]} 11... Kc7 {[%clk 0:02:37.9]} 12. Ngf3 {[%clk 0:02:56.2]}
12... f6 {[%clk 0:02:37.7]} 13. Nc4 {[%clk 0:02:38.4]} 13... e5 {[%clk
0:02:33.7]} 14. Rd2 {[%clk 0:02:36.9]} 14... Be6 {[%clk 0:02:27.9]} 15. Na5
{[%clk 0:02:32.8]} 15... g6 {[%clk 0:01:57.7]} 16. Kb1 {[%clk 0:02:28.3]} 16...
Bh6 {[%clk 0:01:52.8]} 17. Rdd1 {[%clk 0:02:28.4]} 17... Rhd8 {[%clk 0:01:29.7]}
18. h3 {[%clk 0:01:52.7]} 18... c4 {[%clk 0:01:28.5]} 19. g4 {[%clk 0:01:38.2]}
19... Bd5 {[%clk 0:01:22.1]} 20. Rxd5 {[%clk 0:00:54.1]} 20... cxd5 {[%clk
0:01:20.2]} 21. h4 {[%clk 0:00:55]} 21... Bf4 {[%clk 0:01:11.9]} 22. Kc2 {[%clk
0:00:54.5]} 22... Rab8 {[%clk 0:01:07.2]} 23. b4 {[%clk 0:00:53.7]} 23... cxb3+
{[%clk 0:01:05.6]} 24. axb3 {[%clk 0:00:54.6]} 24... Rb5 {[%clk 0:00:58.3]} 25.
b4 {[%clk 0:00:54.6]} 25... d4 {[%clk 0:00:58.3]} 26. Nb3 {[%clk 0:00:50.5]}
26... dxc3 {[%clk 0:00:51.4]} 27. Nc5 {[%clk 0:00:50.5]} 27... Rd5 {[%clk
0:00:35.7]} 28. Kxc3 {[%clk 0:00:49.8]} 28... Rdxc5+ {[%clk 0:00:29.3]} 29. bxc5
{[%clk 0:00:50.7]} 29... Rxc5+ {[%clk 0:00:29.8]} 30. Kb3 {[%clk 0:00:49.5]}
30... Rb5+ {[%clk 0:00:21.5]} 31. Kc3 {[%clk 0:00:49.6]} 31... e4 {[%clk
0:00:19.7]} 32. Nd4 {[%clk 0:00:48.7]} 32... Be5 {[%clk 0:00:19.9]} 33. Kc4
{[%clk 0:00:49.1]} 33... Rb2 {[%clk 0:00:18.4]} 34. Ne6+ {[%clk 0:00:44.3]}
34... Kd6 {[%clk 0:00:18.5]} 35. Nf8 {[%clk 0:00:45.2]} 35... Rxf2 {[%clk
0:00:16.8]} 36. Nxh7 {[%clk 0:00:45.5]} 36... Rc2+ {[%clk 0:00:16.7]} 37. Kb3
{[%clk 0:00:45.1]} 37... Rc3+ {[%clk 0:00:17.1]} 38. Kb4 {[%clk 0:00:44.9]}
38... e3 {[%clk 0:00:17.4]} 39. h5 {[%clk 0:00:45]} 39... gxh5 {[%clk
0:00:17.3]} 40. gxh5 {[%clk 0:00:45.9]} 40... e2 {[%clk 0:00:17.8]} 41. h6
{[%clk 0:00:38.1]} 41... Re3 {[%clk 0:00:17.9]} 42. Re1 {[%clk 0:00:36.9]} 42...
Bc3+ {[%clk 0:00:17.7]} 43. Kc4 {[%clk 0:00:36.4]} 43... Bxe1 {[%clk 0:00:18.6]}
44. Kd4 {[%clk 0:00:37.3]} 44... Rh3 {[%clk 0:00:18.4]} 45. Ng5 {[%clk
0:00:35.8]} 45... fxg5 {[%clk 0:00:16.9]} 46. h7 {[%clk 0:00:36.1]} 46... Bc3+
{[%clk 0:00:17]} 47. Ke4 {[%clk 0:00:35.7]} 47... Bh8 {[%clk 0:00:17.4]} 48. Kf5
{[%clk 0:00:36.6]} 48... Rxh7 {[%clk 0:00:17.1]} 49. Kg4 {[%clk 0:00:37.5]}
49... Rh4+ {[%clk 0:00:16.5]} 50. Kxg5 {[%clk 0:00:37.3]} 50... Rf4 {[%clk
0:00:16.5]} 51. Kg6 {[%clk 0:00:38.2]} 51... Ke6 {[%clk 0:00:15.8]} 52. Kh5
{[%clk 0:00:39.1]} 52... Kf6 {[%clk 0:00:15.1]} 53. Kh6 {[%clk 0:00:39.7]} 53...
Rh4# {[%clk 0:00:15.7]} 0-1

[Event "*** Titled Tuesday Blitz"]
[Site "Chess.com"]
[Date "2020.05.12"]
[Round "4"]
[White "MichailovM"]
[Black "scabies1"]
[Result "0-1"]
[WhiteElo "2403"]
[BlackElo "2253"]
[TimeControl "180+1"]
[EndTime "10:38:54 PDT"]
[Termination "scabies1 won on time"]

1. e4 {[%clk 0:03:00.9]} 1... c5 {[%clk 0:02:58.7]} 2. Nf3 {[%clk 0:02:59.6]}
2... e6 {[%clk 0:02:59.2]} 3. d4 {[%clk 0:02:45.2]} 3... cxd4 {[%clk 0:03:00.1]}
4. Nxd4 {[%clk 0:02:45.7]} 4... Nc6 {[%clk 0:02:57.1]} 5. Nc3 {[%clk 0:02:45.8]}
5... Qc7 {[%clk 0:02:57.5]} 6. Be2 {[%clk 0:02:38.2]} 6... a6 {[%clk 0:02:54.4]}
7. O-O {[%clk 0:02:39.1]} 7... Nf6 {[%clk 0:02:54.6]} 8. Be3 {[%clk 0:02:38.9]}
8... Bb4 {[%clk 0:02:55.1]} 9. Na4 {[%clk 0:02:38.7]} 9... Be7 {[%clk
0:02:53.8]} 10. Nxc6 {[%clk 0:02:38.2]} 10... bxc6 {[%clk 0:02:54.7]} 11. Nb6
{[%clk 0:02:38.3]} 11... Rb8 {[%clk 0:02:53.9]} 12. Nxc8 {[%clk 0:02:38.8]}
12... Qxc8 {[%clk 0:02:54.8]} 13. Bd4 {[%clk 0:02:38.5]} 13... O-O {[%clk
0:02:27.2]} 14. e5 {[%clk 0:02:05.8]} 14... Nd5 {[%clk 0:02:25.2]} 15. c4 {[%clk
0:01:55.3]} 15... Nf4 {[%clk 0:02:17.3]} 16. Bf3 {[%clk 0:01:54.8]} 16... Qc7
{[%clk 0:01:50.2]} 17. c5 {[%clk 0:01:40.8]} 17... f6 {[%clk 0:01:42.6]} 18.
exf6 {[%clk 0:01:37.6]} 18... Bxf6 {[%clk 0:01:42.7]} 19. Re1 {[%clk 0:01:26.4]}
19... Nh3+ {[%clk 0:01:13.7]} 20. gxh3 {[%clk 0:00:22.8]} 20... Bxd4 {[%clk
0:01:10.7]} 21. Qxd4 {[%clk 0:00:23.7]} 21... Rxf3 {[%clk 0:01:09.9]} 22. Re3
{[%clk 0:00:24.3]} 22... Rf4 {[%clk 0:01:06]} 23. Qd2 {[%clk 0:00:18.8]} 23...
Rbf8 {[%clk 0:01:01.4]} 24. Rd1 {[%clk 0:00:18]} 24... R8f7 {[%clk 0:00:47.7]}
25. Rg3 {[%clk 0:00:06]} 25... g6 {[%clk 0:00:46.7]} 26. Qd6 {[%clk 0:00:04.7]}
26... Qxd6 {[%clk 0:00:40.2]} 27. Rxd6 {[%clk 0:00:05.6]} 27... Rxf2 {[%clk
0:00:39]} 28. Rxd7 {[%clk 0:00:02.6]} 28... Rxb2 {[%clk 0:00:36.8]} 29. Rxf7
{[%clk 0:00:02]} 29... Kxf7 {[%clk 0:00:37.7]} 30. Ra3 {[%clk 0:00:02.3]} 30...
Rc2 {[%clk 0:00:33.4]} 31. Rxa6 {[%clk 0:00:02.7]} 31... Rxc5 {[%clk 0:00:33.8]}
32. Ra7+ {[%clk 0:00:03.2]} 32... Kf6 {[%clk 0:00:34.1]} 33. Rxh7 {[%clk
0:00:02.9]} 33... Ra5 {[%clk 0:00:34.6]} 34. Rc7 {[%clk 0:00:03.2]} 34... c5
{[%clk 0:00:33.5]} 35. Kf2 {[%clk 0:00:02.6]} 35... Rxa2+ {[%clk 0:00:32.8]} 36.
Kg3 {[%clk 0:00:03.2]} 36... Rc2 {[%clk 0:00:31.3]} 37. h4 {[%clk 0:00:03.2]}
37... c4 {[%clk 0:00:30.9]} 38. Kf4 {[%clk 0:00:03.6]} 38... c3 {[%clk
0:00:27.6]} 39. h3 {[%clk 0:00:03.1]} 39... Rc1 {[%clk 0:00:26.7]} 40. Ke3
{[%clk 0:00:03.2]} 40... e5 {[%clk 0:00:23.2]} 0-1

[Event "*** Titled Tuesday Blitz"]
[Site "Chess.com"]
[Date "2020.05.12"]
[Round "4"]
[White "Angel_Hranitel_37"]
[Black "Munkhzul_Davaakhuu"]
[Result "1-0"]
[WhiteElo "2364"]
[BlackElo "1902"]
[TimeControl "180+1"]
[EndTime "10:38:54 PDT"]
[Termination "Angel_Hranitel_37 won on time"]

1. d4 {[%clk 0:03:00.9]} 1... d5 {[%clk 0:02:59.5]} 2. c4 {[%clk 0:03:00.4]}
2... e6 {[%clk 0:02:59]} 3. Nf3 {[%clk 0:03:00.2]} 3... a6 {[%clk 0:02:58.6]} 4.
cxd5 {[%clk 0:02:57]} 4... exd5 {[%clk 0:02:58.1]} 5. g3 {[%clk 0:02:57.6]} 5...
Nf6 {[%clk 0:02:55.3]} 6. Bg2 {[%clk 0:02:58.1]} 6... Be7 {[%clk 0:02:50.8]} 7.
O-O {[%clk 0:02:57.9]} 7... O-O {[%clk 0:02:50.5]} 8. Nc3 {[%clk 0:02:56.8]}
8... Bf5 {[%clk 0:02:49.5]} 9. Bf4 {[%clk 0:02:56]} 9... c6 {[%clk 0:02:48.8]}
10. Qb3 {[%clk 0:02:52]} 10... Qc8 {[%clk 0:02:34.9]} 11. Na4 {[%clk 0:02:48.8]}
11... Nbd7 {[%clk 0:02:34]} 12. Nh4 {[%clk 0:02:45.3]} 12... Be6 {[%clk
0:02:30.2]} 13. Rac1 {[%clk 0:02:41.7]} 13... b5 {[%clk 0:02:24.6]} 14. Nc3
{[%clk 0:02:39.8]} 14... Nb6 {[%clk 0:02:22.1]} 15. Nf3 {[%clk 0:02:33]} 15...
Qb7 {[%clk 0:02:10.5]} 16. Ne5 {[%clk 0:02:31.7]} 16... Nc4 {[%clk 0:02:02.8]}
17. Qc2 {[%clk 0:02:28.8]} 17... Rfd8 {[%clk 0:01:55.9]} 18. b3 {[%clk
0:02:27.2]} 18... Nxe5 {[%clk 0:01:54.4]} 19. Bxe5 {[%clk 0:02:26.8]} 19... Rac8
{[%clk 0:01:37.3]} 20. Nd1 {[%clk 0:02:19.8]} 20... Nd7 {[%clk 0:01:31.9]} 21.
Bf4 {[%clk 0:02:11.8]} 21... c5 {[%clk 0:01:25.7]} 22. dxc5 {[%clk 0:02:10.6]}
22... Rxc5 {[%clk 0:01:23.6]} 23. Qb2 {[%clk 0:02:10.1]} 23... Bf6 {[%clk
0:01:21]} 24. Qb1 {[%clk 0:02:09.5]} 24... Rdc8 {[%clk 0:01:19.8]} 25. Ne3
{[%clk 0:01:59.2]} 25... Qc6 {[%clk 0:01:08.6]} 26. Nf5 {[%clk 0:01:45.7]} 26...
Bxf5 {[%clk 0:00:56.2]} 27. Qxf5 {[%clk 0:01:43.5]} 27... g6 {[%clk 0:00:38.1]}
28. Qh3 {[%clk 0:01:29.4]} 28... Rc3 {[%clk 0:00:17.2]} 29. Rxc3 {[%clk
0:01:28.7]} 29... Bxc3 {[%clk 0:00:16.8]} 30. Rc1 {[%clk 0:01:28.6]} 30... b4
{[%clk 0:00:16.8]} 31. Qg4 {[%clk 0:01:10.5]} 31... Nf6 {[%clk 0:00:16]} 32. Qf3
{[%clk 0:01:03.1]} 32... Qe8 {[%clk 0:00:15.1]} 33. Bh3 {[%clk 0:00:58.4]} 33...
Rc5 {[%clk 0:00:10]} 34. Bd6 {[%clk 0:00:54.1]} 34... Rc6 {[%clk 0:00:09.4]} 35.
Bf4 {[%clk 0:00:46.5]} 35... Kg7 {[%clk 0:00:09]} 36. Qd3 {[%clk 0:00:40.3]}
36... Bb2 {[%clk 0:00:07.3]} 37. Rxc6 {[%clk 0:00:36]} 37... Qxc6 {[%clk
0:00:06.3]} 38. Bg2 {[%clk 0:00:36.6]} 38... Bc1 {[%clk 0:00:05.1]} 39. Be5
{[%clk 0:00:35.3]} 39... Bg5 {[%clk 0:00:02.4]} 40. Bxd5 {[%clk 0:00:30.1]}
40... Qc1+ {[%clk 0:00:02]} 41. Kg2 {[%clk 0:00:30.8]} 41... h5 {[%clk
0:00:01.1]} 42. h4 {[%clk 0:00:30.5]} 1-0

[Event "*** Titled Tuesday Blitz"]
[Site "Chess.com"]
[Date "2020.05.12"]
[Round "4"]
[White "mbojan"]
[Black "uchenic"]
[Result "1-0"]
[WhiteElo "2675"]
[BlackElo "2473"]
[TimeControl "180+1"]
[EndTime "10:38:55 PDT"]
[Termination "mbojan won by checkmate"]

1. e4 {[%clk 0:03:00.9]} 1... e6 {[%clk 0:03:00.2]} 2. d4 {[%clk 0:02:57.3]}
2... d5 {[%clk 0:03:00.4]} 3. Nc3 {[%clk 0:02:56]} 3... Bb4 {[%clk 0:03:00]} 4.
e5 {[%clk 0:02:55.2]} 4... Qd7 {[%clk 0:03:00.2]} 5. Bd2 {[%clk 0:02:54.6]} 5...
b6 {[%clk 0:03:00.1]} 6. a3 {[%clk 0:02:53.3]} 6... Bf8 {[%clk 0:02:59.9]} 7. h4
{[%clk 0:02:51]} 7... Ba6 {[%clk 0:02:59]} 8. Bxa6 {[%clk 0:02:50.6]} 8... Nxa6
{[%clk 0:02:59.1]} 9. h5 {[%clk 0:02:51.2]} 9... h6 {[%clk 0:02:58.7]} 10. Qe2
{[%clk 0:02:48.6]} 10... Nb8 {[%clk 0:02:58.1]} 11. Nf3 {[%clk 0:02:42.7]} 11...
a6 {[%clk 0:02:51.4]} 12. O-O {[%clk 0:02:33.6]} 12... c5 {[%clk 0:02:49.4]} 13.
Nd1 {[%clk 0:02:30.3]} 13... Nc6 {[%clk 0:02:40]} 14. c3 {[%clk 0:02:18.3]}
14... Na5 {[%clk 0:02:30.7]} 15. Ne3 {[%clk 0:02:18.3]} 15... Nb3 {[%clk
0:02:22.8]} 16. Rad1 {[%clk 0:02:17.9]} 16... Ne7 {[%clk 0:02:14.4]} 17. Bc1
{[%clk 0:02:12.4]} 17... Qb5 {[%clk 0:02:07.8]} 18. c4 {[%clk 0:01:53.3]} 18...
dxc4 {[%clk 0:01:57.9]} 19. Nxc4 {[%clk 0:01:52.6]} 19... Nf5 {[%clk 0:01:57.7]}
20. a4 {[%clk 0:01:36.9]} 20... Qc6 {[%clk 0:01:49.5]} 21. Be3 {[%clk
0:00:48.5]} 21... Rd8 {[%clk 0:01:35.8]} 22. dxc5 {[%clk 0:00:33.6]} 22... Bxc5
{[%clk 0:01:32.3]} 23. Rxd8+ {[%clk 0:00:32.8]} 23... Kxd8 {[%clk 0:01:32.5]}
24. Qd3+ {[%clk 0:00:24.9]} 24... Qd5 {[%clk 0:00:57.5]} 25. Qxb3 {[%clk
0:00:24.6]} 25... Nxe3 {[%clk 0:00:50.6]} 26. fxe3 {[%clk 0:00:20.6]} 26... Kc7
{[%clk 0:00:44.9]} 27. Rd1 {[%clk 0:00:20.3]} 27... Qe4 {[%clk 0:00:38]} 28. Qd3
{[%clk 0:00:19.8]} 28... Qxd3 {[%clk 0:00:35]} 29. Rxd3 {[%clk 0:00:20.7]} 29...
b5 {[%clk 0:00:34.7]} 30. axb5 {[%clk 0:00:21.6]} 30... axb5 {[%clk 0:00:35]}
31. Nd6 {[%clk 0:00:22.5]} 31... Ra8 {[%clk 0:00:25.9]} 32. Nxb5+ {[%clk
0:00:22.3]} 32... Kb6 {[%clk 0:00:25.7]} 33. Nc3 {[%clk 0:00:21.7]} 33... Ra1+
{[%clk 0:00:24.9]} 34. Kh2 {[%clk 0:00:22.2]} 34... Kc6 {[%clk 0:00:23.1]} 35.
Ne4 {[%clk 0:00:21.8]} 35... Rb1 {[%clk 0:00:21]} 36. Rc3 {[%clk 0:00:21.5]}
36... Kb6 {[%clk 0:00:18.6]} 37. Nxc5 {[%clk 0:00:21.7]} 37... Kb5 {[%clk
0:00:17.7]} 38. Nd4+ {[%clk 0:00:21]} 38... Kb6 {[%clk 0:00:17.4]} 39. Na4+
{[%clk 0:00:21]} 39... Ka5 {[%clk 0:00:17.4]} 40. Nc5 {[%clk 0:00:21.9]} 40...
Kb6 {[%clk 0:00:17.5]} 41. Nd3 {[%clk 0:00:22.4]} 41... Ra1 {[%clk 0:00:16.1]}
42. b4 {[%clk 0:00:22.7]} 42... Rb1 {[%clk 0:00:15.9]} 43. b5 {[%clk 0:00:23.1]}
43... Ra1 {[%clk 0:00:16.2]} 44. Rc6+ {[%clk 0:00:23.4]} 44... Kb7 {[%clk
0:00:16.8]} 45. Nc5+ {[%clk 0:00:23.7]} 45... Kb8 {[%clk 0:00:17.2]} 46. Rb6+
{[%clk 0:00:23.3]} 46... Kc8 {[%clk 0:00:17.2]} 47. Nc6 {[%clk 0:00:23.2]} 47...
Kc7 {[%clk 0:00:17.6]} 48. Rb7+ {[%clk 0:00:23.1]} 48... Kc8 {[%clk 0:00:18.1]}
49. Rxf7 {[%clk 0:00:23.1]} 49... Rb1 {[%clk 0:00:17.9]} 50. Nxe6 {[%clk
0:00:22.9]} 50... Rxb5 {[%clk 0:00:17.5]} 51. Rc7# {[%clk 0:00:23.1]} 1-0

[Event "*** Titled Tuesday Blitz"]
[Site "Chess.com"]
[Date "2020.05.12"]
[Round "4"]
[White "not_najdorfs_player"]
[Black "Mazanchenko_Dmitry"]
[Result "0-1"]
[WhiteElo "2337"]
[BlackElo "2133"]
[TimeControl "180+1"]
[EndTime "10:38:55 PDT"]
[Termination "Mazanchenko_Dmitry won by checkmate"]

1. e4 {[%clk 0:03:00.9]} 1... c5 {[%clk 0:02:58.8]} 2. Nf3 {[%clk 0:03:00.8]}
2... d6 {[%clk 0:02:57]} 3. d4 {[%clk 0:03:01.2]} 3... Nf6 {[%clk 0:02:56.4]} 4.
Nc3 {[%clk 0:03:01.1]} 4... cxd4 {[%clk 0:02:55.4]} 5. Nxd4 {[%clk 0:03:00.6]}
5... Nc6 {[%clk 0:02:56.3]} 6. Bc4 {[%clk 0:02:57.2]} 6... e6 {[%clk 0:02:54.8]}
7. Be3 {[%clk 0:02:56.7]} 7... Qc7 {[%clk 0:02:54.5]} 8. Qe2 {[%clk 0:02:56.2]}
8... Bd7 {[%clk 0:02:50.5]} 9. O-O-O {[%clk 0:02:54.9]} 9... Be7 {[%clk
0:02:49.1]} 10. f4 {[%clk 0:02:48.8]} 10... Nxd4 {[%clk 0:02:38.8]} 11. Bxd4
{[%clk 0:02:43.8]} 11... e5 {[%clk 0:02:34.4]} 12. fxe5 {[%clk 0:02:37.7]} 12...
dxe5 {[%clk 0:02:35]} 13. Be3 {[%clk 0:02:25.9]} 13... Bg4 {[%clk 0:02:32.9]}
14. Bb5+ {[%clk 0:02:22.1]} 14... Kf8 {[%clk 0:02:32.2]} 15. Qe1 {[%clk
0:01:59.2]} 15... Bxd1 {[%clk 0:02:30]} 16. Qxd1 {[%clk 0:01:58.8]} 16... Rd8
{[%clk 0:02:27.9]} 17. Qf3 {[%clk 0:01:57.6]} 17... h6 {[%clk 0:02:20.1]} 18.
Rf1 {[%clk 0:01:51.2]} 18... Kg8 {[%clk 0:02:15.5]} 19. g4 {[%clk 0:01:36.5]}
19... Rc8 {[%clk 0:02:02.7]} 20. Bd3 {[%clk 0:01:18.1]} 20... Bb4 {[%clk
0:01:57.6]} 21. Nd5 {[%clk 0:01:03.3]} 21... Nxd5 {[%clk 0:01:55.1]} 22. exd5
{[%clk 0:01:04.2]} 22... f6 {[%clk 0:01:37.5]} 23. Qf5 {[%clk 0:00:56.4]} 23...
Re8 {[%clk 0:00:55.1]} 24. h4 {[%clk 0:00:34.8]} 24... e4 {[%clk 0:00:48.3]} 25.
Be2 {[%clk 0:00:21.4]} 25... Qe5 {[%clk 0:00:40.2]} 26. Qg6 {[%clk 0:00:21.1]}
26... Rc8 {[%clk 0:00:26.4]} 27. Rd1 {[%clk 0:00:19.3]} 27... Qg3 {[%clk
0:00:16.8]} 28. Bd4 {[%clk 0:00:17.7]} 28... Qf4+ {[%clk 0:00:14.2]} 29. Kb1
{[%clk 0:00:16.9]} 29... Bf8 {[%clk 0:00:09.3]} 30. Rf1 {[%clk 0:00:16.2]} 30...
Qd2 {[%clk 0:00:07.2]} 31. Bxf6 {[%clk 0:00:02.8]} 31... Qxc2+ {[%clk
0:00:03.6]} 32. Ka1 {[%clk 0:00:03.2]} 32... Qc1+ {[%clk 0:00:03.9]} 33. Rxc1
{[%clk 0:00:03.2]} 33... Rxc1# {[%clk 0:00:04.8]} 0-1